[Event "Titled Tuesday Blitz October 18 Late 2022"]
[White "Curtis, John"]
[Black "Gonzalez, Francisco Silva"]
[WhiteFideId "3200256"]
[BlackFideId "1512285"]
[WhiteElo "2203"]
[BlackElo "2159"]
[Result "0-1"]
[Round "05"]
[TimeControl "180+1"]
[Date "2022.10.19"]
[WhiteClock "0:00:07"]
[BlackClock "0:00:16"]

1. e4 {[%clk 0:02:58]}  e5 {[%clk 0:02:59]} 2. Nf3 {[%clk 0:02:52]}  Nc6 {[%clk 0:02:59]} 3. Bb5 {[%clk 0:02:48]}  a6 {[%clk 0:02:58]} 4. Bxc6 {[%clk 0:02:42]}  dxc6 {[%clk 0:02:58]} 5. O-O {[%clk 0:02:43]}  Bd6 {[%clk 0:02:58]} 6. d4 {[%clk 0:02:41]}  exd4 {[%clk 0:02:58]} 7. Nxd4 {[%clk 0:02:39]}  Ne7 {[%clk 0:02:57]} 8. Be3 {[%clk 0:02:24]}  O-O {[%clk 0:02:56]} 9. Nd2 {[%clk 0:02:15]}  f5 {[%clk 0:02:55]} 10. f3 {[%clk 0:02:05]}  Qe8 {[%clk 0:02:25]} 11. exf5 {[%clk 0:01:59]}  Nxf5 {[%clk 0:02:23]} 12. Nxf5 {[%clk 0:01:57]}  Bxf5 {[%clk 0:02:22]} 13. Bf2 {[%clk 0:01:40]}  Qg6 {[%clk 0:02:20]} 14. c3 {[%clk 0:01:20]}  Rad8 {[%clk 0:02:14]} 15. Qb3+ {[%clk 0:01:05]}  Kh8 {[%clk 0:02:14]} 16. Ne4 {[%clk 0:01:03]}  Bxe4 {[%clk 0:01:49]} 17. fxe4 {[%clk 0:01:03]}  b5 {[%clk 0:01:32]} 18. Rae1 {[%clk 0:00:54]}  Rxf2 {[%clk 0:01:25]} 19. Rxf2 {[%clk 0:00:42]}  Bc5 {[%clk 0:01:25]} 20. Qc2 {[%clk 0:00:41]}  Rf8 {[%clk 0:01:21]} 21. Re2 {[%clk 0:00:38]}  h6 {[%clk 0:00:36]} 22. Kf1 {[%clk 0:00:37]}  Bxf2 {[%clk 0:00:34]} 23. Rxf2 {[%clk 0:00:37]}  Re8 {[%clk 0:00:32]} 24. Re2 {[%clk 0:00:30]}  Qf6+ {[%clk 0:00:32]} 25. Rf2 {[%clk 0:00:29]}  Qe5 {[%clk 0:00:32]} 26. Kg1 {[%clk 0:00:27]}  Qxe4 {[%clk 0:00:30]} 27. Rf8+ {[%clk 0:00:27]}  Kh7 {[%clk 0:00:30]} 28. Qxe4+ {[%clk 0:00:26]}  Rxe4 {[%clk 0:00:30]} 29. Rf7 {[%clk 0:00:27]}  Re2 {[%clk 0:00:28]} 30. b4 {[%clk 0:00:25]}  c5 {[%clk 0:00:27]} 31. Rxc7 {[%clk 0:00:22]}  cxb4 {[%clk 0:00:26]} 32. cxb4 {[%clk 0:00:22]}  Rxa2 {[%clk 0:00:26]} 33. Ra7 {[%clk 0:00:23]}  h5 {[%clk 0:00:26]} 34. h4 {[%clk 0:00:21]}  Kh6 {[%clk 0:00:24]} 35. Kh2 {[%clk 0:00:22]}  Ra3 {[%clk 0:00:23]} 36. g3 {[%clk 0:00:21]}  Kg6 {[%clk 0:00:23]} 37. Kh3 {[%clk 0:00:21]}  Kf6 {[%clk 0:00:23]} 38. Rb7 {[%clk 0:00:21]}  g6 {[%clk 0:00:22]} 39. Rb6+ {[%clk 0:00:21]}  Kf5 {[%clk 0:00:22]} 40. Rc6 {[%clk 0:00:21]}  Ra4 {[%clk 0:00:21]} 41. Rc5+ {[%clk 0:00:20]}  Kf6 {[%clk 0:00:21]} 42. Rc6+ {[%clk 0:00:21]}  Kg7 {[%clk 0:00:22]} 43. Rc7+ {[%clk 0:00:21]}  Kh6 {[%clk 0:00:22]} 44. Ra7 {[%clk 0:00:21]}  Rxb4 {[%clk 0:00:22]} 45. Rxa6 {[%clk 0:00:21]}  Rb1 {[%clk 0:00:22]} 46. Rb6 {[%clk 0:00:22]}  Kg7 {[%clk 0:00:22]} 47. Kg2 {[%clk 0:00:22]}  Rb3 {[%clk 0:00:21]} 48. Rb7+ {[%clk 0:00:21]}  Kf6 {[%clk 0:00:22]} 49. Rb8 {[%clk 0:00:21]}  b4 {[%clk 0:00:21]} 50. Rf8+ {[%clk 0:00:22]}  Ke7 {[%clk 0:00:21]} 51. Rf4 {[%clk 0:00:21]}  Ke6 {[%clk 0:00:20]} 52. Rc4 {[%clk 0:00:21]}  Kd5 {[%clk 0:00:20]} 53. Rc7 {[%clk 0:00:21]}  Rb2+ {[%clk 0:00:19]} 54. Kf3 {[%clk 0:00:20]}  Ke5 {[%clk 0:00:20]} 55. Rc5+ {[%clk 0:00:19]}  Kf6 {[%clk 0:00:20]} 56. Rc6+ {[%clk 0:00:20]}  Kg7 {[%clk 0:00:21]} 57. Rc7+ {[%clk 0:00:20]}  Kh6 {[%clk 0:00:21]} 58. g4 {[%clk 0:00:20]}  Rb3+ {[%clk 0:00:20]} 59. Kf4 {[%clk 0:00:20]}  hxg4 {[%clk 0:00:21]} 60. Kxg4 {[%clk 0:00:19]}  Rb1 {[%clk 0:00:21]} 61. Rc6 {[%clk 0:00:19]}  b3 {[%clk 0:00:21]} 62. Kh3 {[%clk 0:00:16]}  Kg7 {[%clk 0:00:20]} 63. Kg2 {[%clk 0:00:15]}  Kf7 {[%clk 0:00:19]} 64. Rc7+ {[%clk 0:00:15]}  Ke6 {[%clk 0:00:19]} 65. Rc5 {[%clk 0:00:14]}  Kd6 {[%clk 0:00:19]} 66. Rb5 {[%clk 0:00:14]}  b2 {[%clk 0:00:18]} 67. Rg5 {[%clk 0:00:15]}  Kc7 {[%clk 0:00:18]} 68. Rb5 {[%clk 0:00:14]}  Kc6 {[%clk 0:00:18]} 69. Rb3 {[%clk 0:00:14]}  Kc5 {[%clk 0:00:18]} 70. Rc3+ {[%clk 0:00:14]}  Kd4 {[%clk 0:00:18]} 71. Rc2 {[%clk 0:00:15]}  Kd3 {[%clk 0:00:17]} 72. Rf2 {[%clk 0:00:13]}  Kc3 {[%clk 0:00:16]} 73. Rf3+ {[%clk 0:00:13]}  Kc2 {[%clk 0:00:16]} 74. Rf2+ {[%clk 0:00:13]}  Kb3 {[%clk 0:00:16]} 75. Rf3+ {[%clk 0:00:13]}  Ka2 {[%clk 0:00:17]} 76. Rf8 {[%clk 0:00:12]}  Rc1 {[%clk 0:00:16]} 77. Ra8+ {[%clk 0:00:10]}  Kb3 {[%clk 0:00:17]} 78. Rb8+ {[%clk 0:00:10]}  Kc3 {[%clk 0:00:17]} 79. Rc8+ {[%clk 0:00:11]}  Kd4 {[%clk 0:00:17]} 80. Rd8+ {[%clk 0:00:11]}  Ke5 {[%clk 0:00:17]} 81. Kg3 {[%clk 0:00:10]}  b1=Q {[%clk 0:00:16]} 82. Re8+ {[%clk 0:00:10]}  Kf6 {[%clk 0:00:17]} 83. Rf8+ {[%clk 0:00:10]}  Kg7 {[%clk 0:00:17]} 84. Rf2 {[%clk 0:00:09]}  Rg1+ {[%clk 0:00:16]} 85. Kf4 {[%clk 0:00:09]}  Qc1+ {[%clk 0:00:16]} 86. Kf3 {[%clk 0:00:08]}  Qd1+ {[%clk 0:00:16]} 87. Kf4 {[%clk 0:00:09]}  Rg4+ {[%clk 0:00:16]} 88. Ke5 {[%clk 0:00:08]}  Qd4+ {[%clk 0:00:16]} 89. Ke6 {[%clk 0:00:07]}  Re4# {[%clk 0:00:16]} 0-1


[Site "https://www.chess.com"]

[Event "Titled Tuesday Blitz October 18 Late 2022"]
[White "Decuigniere, Tom"]
[Black "Sanchez, Robert"]
[WhiteFideId "26093820"]
[BlackFideId "2034360"]
[WhiteElo "2223"]
[BlackElo "2376"]
[Result "1-0"]
[Round "05"]
[TimeControl "180+1"]
[Date "2022.10.19"]
[WhiteClock "0:01:04"]
[BlackClock "0:00:07"]

1. c4 {[%clk 0:03:00]}  e6 {[%clk 0:02:59]} 2. g3 {[%clk 0:03:01]}  d5 {[%clk 0:03:00]} 3. Bg2 {[%clk 0:03:01]}  Nf6 {[%clk 0:03:00]} 4. Nf3 {[%clk 0:03:02]}  Be7 {[%clk 0:03:01]} 5. O-O {[%clk 0:03:03]}  O-O {[%clk 0:03:00]} 6. b3 {[%clk 0:03:04]}  c6 {[%clk 0:03:00]} 7. Bb2 {[%clk 0:03:04]}  Nbd7 {[%clk 0:03:00]} 8. d3 {[%clk 0:03:04]}  Re8 {[%clk 0:02:56]} 9. Nbd2 {[%clk 0:03:05]}  h6 {[%clk 0:02:56]} 10. e4 {[%clk 0:03:04]}  dxe4 {[%clk 0:02:54]} 11. dxe4 {[%clk 0:03:05]}  Nc5 {[%clk 0:02:53]} 12. e5 {[%clk 0:02:56]}  Nh7 {[%clk 0:02:45]} 13. Qe2 {[%clk 0:02:51]}  Qd3 {[%clk 0:02:36]} 14. Qxd3 {[%clk 0:02:51]}  Nxd3 {[%clk 0:02:36]} 15. Bc3 {[%clk 0:02:52]}  Nb4 {[%clk 0:02:19]} 16. Ne4 {[%clk 0:02:49]}  a5 {[%clk 0:02:05]} 17. Nd6 {[%clk 0:02:46]}  Rf8 {[%clk 0:01:47]} 18. a3 {[%clk 0:02:39]}  Nd3 {[%clk 0:01:46]} 19. Rad1 {[%clk 0:02:34]}  Nc5 {[%clk 0:01:38]} 20. b4 {[%clk 0:02:30]}  axb4 {[%clk 0:01:36]} 21. axb4 {[%clk 0:02:31]}  Na4 {[%clk 0:01:33]} 22. Ra1 {[%clk 0:02:25]}  Rd8 {[%clk 0:01:24]} 23. c5 {[%clk 0:02:19]}  Ra6 {[%clk 0:01:18]} 24. Bd4 {[%clk 0:02:17]}  f6 {[%clk 0:01:07]} 25. Rfe1 {[%clk 0:02:05]}  f5 {[%clk 0:00:56]} 26. Re3 {[%clk 0:01:55]}  Bd7 {[%clk 0:00:27]} 27. Rea3 {[%clk 0:01:46]}  Rda8 {[%clk 0:00:23]} 28. Nc4 {[%clk 0:01:21]}  Bd8 {[%clk 0:00:16]} 29. Nfd2 {[%clk 0:01:18]}  Ng5 {[%clk 0:00:15]} 30. h4 {[%clk 0:01:16]}  Nf7 {[%clk 0:00:14]} 31. Nb3 {[%clk 0:01:05]}  g5 {[%clk 0:00:13]} 32. Nba5 {[%clk 0:01:05]}  Bxa5 {[%clk 0:00:13]} 33. Nxa5 {[%clk 0:01:05]}  Rxa5 {[%clk 0:00:08]} 34. bxa5 {[%clk 0:01:04]}  Rxa5 {[%clk 0:00:07]} 1-0


[Site "https://www.chess.com"]

[Event "Titled Tuesday Blitz October 18 Late 2022"]
[White "Dilanyan, Grigor"]
[Black "Bernat, David"]
[WhiteFideId "13303570"]
[BlackFideId "2099225"]
[WhiteElo "2623"]
[BlackElo "2317"]
[Result "1/2-1/2"]
[Round "05"]
[TimeControl "180+1"]
[Date "2022.10.19"]
[WhiteClock "0:00:03"]
[BlackClock "0:00:03"]

1. Nf3 {[%clk 0:01:21]}  c5 {[%clk 0:02:48]} 2. g3 {[%clk 0:01:21]}  g6 {[%clk 0:02:48]} 3. Bg2 {[%clk 0:01:21]}  Bg7 {[%clk 0:02:48]} 4. O-O {[%clk 0:01:22]}  Nc6 {[%clk 0:02:49]} 5. c3 {[%clk 0:01:22]}  d5 {[%clk 0:02:45]} 6. d4 {[%clk 0:01:22]}  cxd4 {[%clk 0:02:46]} 7. cxd4 {[%clk 0:01:23]}  Nf6 {[%clk 0:02:46]} 8. Nc3 {[%clk 0:01:12]}  O-O {[%clk 0:02:45]} 9. Ne5 {[%clk 0:01:12]}  h6 {[%clk 0:02:40]} 10. Nxc6 {[%clk 0:01:11]}  bxc6 {[%clk 0:02:39]} 11. Bf4 {[%clk 0:01:12]}  Nd7 {[%clk 0:02:27]} 12. Rc1 {[%clk 0:01:10]}  e5 {[%clk 0:02:22]} 13. dxe5 {[%clk 0:00:54]}  Nxe5 {[%clk 0:02:23]} 14. Na4 {[%clk 0:00:51]}  Nc4 {[%clk 0:01:37]} 15. b3 {[%clk 0:00:50]}  Nb6 {[%clk 0:01:36]} 16. Nc5 {[%clk 0:00:33]}  Nd7 {[%clk 0:01:25]} 17. Nd3 {[%clk 0:00:27]}  Bb7 {[%clk 0:01:19]} 18. Qd2 {[%clk 0:00:27]}  Kh7 {[%clk 0:01:19]} 19. Rc2 {[%clk 0:00:26]}  Rc8 {[%clk 0:01:17]} 20. Rfc1 {[%clk 0:00:26]}  Re8 {[%clk 0:01:16]} 21. h4 {[%clk 0:00:25]}  Qe7 {[%clk 0:01:14]} 22. Bf3 {[%clk 0:00:19]}  c5 {[%clk 0:01:01]} 23. Qa5 {[%clk 0:00:15]}  g5 {[%clk 0:00:25]} 24. hxg5 {[%clk 0:00:14]}  hxg5 {[%clk 0:00:26]} 25. Be3 {[%clk 0:00:12]}  d4 {[%clk 0:00:24]} 26. Bxb7 {[%clk 0:00:11]}  dxe3 {[%clk 0:00:24]} 27. Bxc8 {[%clk 0:00:12]}  exf2+ {[%clk 0:00:24]} 28. Kxf2 {[%clk 0:00:12]}  Bd4+ {[%clk 0:00:20]} 29. Kf1 {[%clk 0:00:10]}  Qe4 {[%clk 0:00:11]} 30. Nf2 {[%clk 0:00:06]}  Qe3 {[%clk 0:00:08]} 31. Nh3 {[%clk 0:00:03]}  Qxg3 {[%clk 0:00:04]} 32. e3 {[%clk 0:00:02]}  Qxh3+ {[%clk 0:00:04]} 33. Rg2 {[%clk 0:00:02]}  Qf3+ {[%clk 0:00:03]} 34. Kg1 {[%clk 0:00:02]}  Bxe3+ {[%clk 0:00:03]} 35. Kh2 {[%clk 0:00:02]}  Bf4+ {[%clk 0:00:02]} 36. Kg1 {[%clk 0:00:02]}  Be3+ {[%clk 0:00:02]} 37. Kh2 {[%clk 0:00:02]}  Bf4+ {[%clk 0:00:02]} 38. Kg1 {[%clk 0:00:03]}  Be3+ {[%clk 0:00:03]} 1/2-1/2


[Site "https://www.chess.com"]

[Event "Titled Tuesday Blitz October 18 Late 2022"]
[White "Drost, Peter"]
[Black "Almedina Ortiz, Edgardo J."]
[WhiteFideId "1017896"]
[BlackFideId "3100197"]
[WhiteElo "2402"]
[BlackElo "2217"]
[Result "1/2-1/2"]
[Round "05"]
[TimeControl "180+1"]
[Date "2022.10.19"]
[WhiteClock "0:00:10"]
[BlackClock "0:00:04"]

1. e4 {[%clk 0:03:00]}  e5 {[%clk 0:02:59]} 2. Nf3 {[%clk 0:02:59]}  Nc6 {[%clk 0:02:59]} 3. Bb5 {[%clk 0:02:59]}  a6 {[%clk 0:02:58]} 4. Bxc6 {[%clk 0:02:59]}  dxc6 {[%clk 0:02:58]} 5. O-O {[%clk 0:03:00]}  f6 {[%clk 0:02:58]} 6. d4 {[%clk 0:02:59]}  exd4 {[%clk 0:02:59]} 7. Nxd4 {[%clk 0:03:00]}  c5 {[%clk 0:02:59]} 8. Nb3 {[%clk 0:03:00]}  Qxd1 {[%clk 0:03:00]} 9. Rxd1 {[%clk 0:03:01]}  Be6 {[%clk 0:02:57]} 10. Nc3 {[%clk 0:02:59]}  Bd6 {[%clk 0:02:49]} 11. Be3 {[%clk 0:02:59]}  b6 {[%clk 0:02:49]} 12. Rd2 {[%clk 0:02:51]}  O-O-O {[%clk 0:02:47]} 13. Rad1 {[%clk 0:02:51]}  Ne7 {[%clk 0:02:47]} 14. Nc1 {[%clk 0:02:25]}  Ng6 {[%clk 0:02:30]} 15. f3 {[%clk 0:02:19]}  Ne5 {[%clk 0:02:26]} 16. b3 {[%clk 0:02:18]}  Rhe8 {[%clk 0:02:18]} 17. h3 {[%clk 0:02:14]}  Kb7 {[%clk 0:02:17]} 18. f4 {[%clk 0:01:58]}  Nc6 {[%clk 0:02:14]} 19. N1e2 {[%clk 0:01:35]}  Bf7 {[%clk 0:02:07]} 20. Kf2 {[%clk 0:01:33]}  Bg6 {[%clk 0:01:42]} 21. Kf3 {[%clk 0:01:28]}  Bf7 {[%clk 0:01:00]} 22. g4 {[%clk 0:01:27]}  h5 {[%clk 0:00:56]} 23. Ng3 {[%clk 0:01:26]}  hxg4+ {[%clk 0:00:55]} 24. hxg4 {[%clk 0:01:27]}  g6 {[%clk 0:00:54]} 25. Nd5 {[%clk 0:01:09]}  Re6 {[%clk 0:00:37]} 26. c4 {[%clk 0:01:03]}  Rh8 {[%clk 0:00:35]} 27. Rh1 {[%clk 0:00:52]}  Rxh1 {[%clk 0:00:33]} 28. Nxh1 {[%clk 0:00:52]}  g5 {[%clk 0:00:30]} 29. fxg5 {[%clk 0:00:15]}  fxg5 {[%clk 0:00:29]} 30. Bxg5 {[%clk 0:00:14]}  Ne5+ {[%clk 0:00:23]} 31. Kg2 {[%clk 0:00:14]}  Rg6 {[%clk 0:00:22]} 32. Bf4 {[%clk 0:00:14]}  Rxg4+ {[%clk 0:00:20]} 33. Kf1 {[%clk 0:00:14]}  Bxd5 {[%clk 0:00:19]} 34. Bxe5 {[%clk 0:00:13]}  Bxe4 {[%clk 0:00:15]} 35. Bxd6 {[%clk 0:00:13]}  Bxh1 {[%clk 0:00:14]} 36. Bh2 {[%clk 0:00:12]}  Be4 {[%clk 0:00:12]} 37. Ke2 {[%clk 0:00:11]}  Rg2+ {[%clk 0:00:10]} 38. Ke3 {[%clk 0:00:11]}  Rxd2 {[%clk 0:00:08]} 39. Kxd2 {[%clk 0:00:12]}  Bb1 {[%clk 0:00:09]} 40. Kc3 {[%clk 0:00:12]}  a5 {[%clk 0:00:07]} 41. Kb2 {[%clk 0:00:12]}  Be4 {[%clk 0:00:07]} 42. a4 {[%clk 0:00:11]}  c6 {[%clk 0:00:06]} 43. Kc3 {[%clk 0:00:11]}  Bf5 {[%clk 0:00:05]} 44. Bg1 {[%clk 0:00:12]}  Bd7 {[%clk 0:00:05]} 45. Bh2 {[%clk 0:00:12]}  b5 {[%clk 0:00:05]} 46. Bg1 {[%clk 0:00:12]}  Kb6 {[%clk 0:00:05]} 47. Bf2 {[%clk 0:00:12]}  Be6 {[%clk 0:00:05]} 48. Be3 {[%clk 0:00:11]}  Bg4 {[%clk 0:00:04]} 49. cxb5 {[%clk 0:00:10]}  cxb5 {[%clk 0:00:04]} 50. axb5 {[%clk 0:00:10]}  Kxb5 {[%clk 0:00:04]} 51. Bf2 {[%clk 0:00:10]}  Be6 {[%clk 0:00:03]} 52. Be3 {[%clk 0:00:10]}  Bf5 {[%clk 0:00:02]} 53. Bf2 {[%clk 0:00:10]}  Be6 {[%clk 0:00:03]} 54. Be3 {[%clk 0:00:10]}  Bxb3 {[%clk 0:00:03]} 55. Bxc5 {[%clk 0:00:07]}  Kxc5 {[%clk 0:00:03]} 56. Kxb3 {[%clk 0:00:07]}  Kb5 {[%clk 0:00:03]} 57. Ka3 {[%clk 0:00:07]}  a4 {[%clk 0:00:04]} 58. Ka2 {[%clk 0:00:08]}  a3 {[%clk 0:00:04]} 59. Ka1 {[%clk 0:00:09]}  a2 {[%clk 0:00:04]} 60. Kxa2 {[%clk 0:00:10]} 1/2-1/2


[Site "https://www.chess.com"]

[Event "Titled Tuesday Blitz October 18 Late 2022"]
[White "Dzierzak, Radoslaw"]
[Black "Zakaryan, David"]
[WhiteFideId "1161407"]
[BlackFideId "24101923"]
[WhiteElo "2111"]
[BlackElo "2409"]
[Result "0-1"]
[Round "05"]
[TimeControl "180+1"]
[Date "2022.10.19"]
[WhiteClock "0:00:03"]
[BlackClock "0:01:18"]

1. e4 {[%clk 0:03:00]}  c6 {[%clk 0:02:57]} 2. Nf3 {[%clk 0:02:55]}  d5 {[%clk 0:02:54]} 3. Nc3 {[%clk 0:02:55]}  Bg4 {[%clk 0:02:49]} 4. d4 {[%clk 0:02:54]}  e6 {[%clk 0:02:43]} 5. h3 {[%clk 0:02:52]}  Bh5 {[%clk 0:02:40]} 6. Bd3 {[%clk 0:02:44]}  Nf6 {[%clk 0:02:34]} 7. O-O {[%clk 0:02:34]}  Be7 {[%clk 0:02:29]} 8. Bf4 {[%clk 0:02:15]}  O-O {[%clk 0:02:24]} 9. Re1 {[%clk 0:01:57]}  Na6 {[%clk 0:02:21]} 10. exd5 {[%clk 0:01:40]}  cxd5 {[%clk 0:02:14]} 11. g4 {[%clk 0:01:19]}  Bg6 {[%clk 0:02:12]} 12. Ne5 {[%clk 0:01:10]}  Nb4 {[%clk 0:02:06]} 13. Bxg6 {[%clk 0:01:08]}  hxg6 {[%clk 0:02:07]} 14. Ne2 {[%clk 0:01:04]}  Rc8 {[%clk 0:02:06]} 15. c3 {[%clk 0:01:04]}  Nc6 {[%clk 0:02:06]} 16. Ng3 {[%clk 0:01:03]}  b5 {[%clk 0:02:02]} 17. g5 {[%clk 0:00:57]}  Nd7 {[%clk 0:02:02]} 18. Nxd7 {[%clk 0:00:54]}  Qxd7 {[%clk 0:02:01]} 19. h4 {[%clk 0:00:54]}  Bd6 {[%clk 0:01:58]} 20. Bxd6 {[%clk 0:00:51]}  Qxd6 {[%clk 0:01:59]} 21. Qg4 {[%clk 0:00:50]}  b4 {[%clk 0:01:51]} 22. h5 {[%clk 0:00:44]}  e5 {[%clk 0:01:44]} 23. Kg2 {[%clk 0:00:35]}  bxc3 {[%clk 0:01:41]} 24. bxc3 {[%clk 0:00:34]}  exd4 {[%clk 0:01:37]} 25. cxd4 {[%clk 0:00:33]}  Rce8 {[%clk 0:01:37]} 26. Rh1 {[%clk 0:00:31]}  Re6 {[%clk 0:01:28]} 27. Qh4 {[%clk 0:00:24]}  Rfe8 {[%clk 0:01:28]} 28. h6 {[%clk 0:00:18]}  Qf8 {[%clk 0:01:23]} 29. Rh2 {[%clk 0:00:11]}  gxh6 {[%clk 0:01:22]} 30. gxh6 {[%clk 0:00:10]}  Kh7 {[%clk 0:01:22]} 31. Rah1 {[%clk 0:00:10]}  Qh8 {[%clk 0:01:22]} 32. Rh3 {[%clk 0:00:04]}  Qxd4 {[%clk 0:01:19]} 33. Qxd4 {[%clk 0:00:03]}  Nxd4 {[%clk 0:01:20]} 34. Rd1 {[%clk 0:00:03]}  Ne2 {[%clk 0:01:18]} 35. Rxd5 {[%clk 0:00:03]}  Nf4+ {[%clk 0:01:18]} 36. Kh2 {[%clk 0:00:03]}  Nxd5 {[%clk 0:01:18]} 0-1


[Site "https://www.chess.com"]

[Event "Titled Tuesday Blitz October 18 Late 2022"]
[White "Erdogdu, Mert"]
[Black "Ventura Bolet, Maxim"]
[WhiteFideId "6301495"]
[BlackFideId "22238824"]
[WhiteElo "2413"]
[BlackElo "2186"]
[Result "1-0"]
[Round "05"]
[TimeControl "180+1"]
[Date "2022.10.18"]
[WhiteClock "0:00:21"]
[BlackClock "0:00:04"]

1. e4 {[%clk 0:03:00]}  c5 {[%clk 0:02:58]} 2. Nf3 {[%clk 0:03:00]}  a6 {[%clk 0:02:52]} 3. c3 {[%clk 0:02:58]}  g6 {[%clk 0:02:50]} 4. d4 {[%clk 0:02:58]}  cxd4 {[%clk 0:02:49]} 5. cxd4 {[%clk 0:02:59]}  d5 {[%clk 0:02:50]} 6. exd5 {[%clk 0:02:59]}  Nf6 {[%clk 0:02:50]} 7. Nc3 {[%clk 0:02:58]}  Bg7 {[%clk 0:02:50]} 8. Bc4 {[%clk 0:02:58]}  O-O {[%clk 0:02:49]} 9. O-O {[%clk 0:02:57]}  b5 {[%clk 0:02:49]} 10. Bb3 {[%clk 0:02:58]}  Bb7 {[%clk 0:02:50]} 11. Bg5 {[%clk 0:02:54]}  Nbd7 {[%clk 0:02:49]} 12. Ne5 {[%clk 0:02:50]}  Nb6 {[%clk 0:02:47]} 13. Nc6 {[%clk 0:02:49]}  Qd7 {[%clk 0:02:38]} 14. Re1 {[%clk 0:02:45]}  Rfe8 {[%clk 0:02:28]} 15. Ne5 {[%clk 0:02:44]}  Qd6 {[%clk 0:02:18]} 16. Bxf6 {[%clk 0:02:25]}  exf6 {[%clk 0:02:14]} 17. Ne4 {[%clk 0:02:24]}  Qd8 {[%clk 0:01:31]} 18. Nc6 {[%clk 0:02:19]}  Qd7 {[%clk 0:01:30]} 19. Nc5 {[%clk 0:02:19]}  Qc7 {[%clk 0:01:18]} 20. Qf3 {[%clk 0:02:05]}  Nc4 {[%clk 0:00:56]} 21. Bxc4 {[%clk 0:01:49]}  bxc4 {[%clk 0:00:56]} 22. Nxb7 {[%clk 0:01:21]}  Qxb7 {[%clk 0:00:56]} 23. d6 {[%clk 0:01:22]}  Qd7 {[%clk 0:00:48]} 24. Ne7+ {[%clk 0:01:10]}  Kh8 {[%clk 0:00:39]} 25. Qd5 {[%clk 0:01:09]}  Rad8 {[%clk 0:00:21]} 26. Qxf7 {[%clk 0:01:03]}  Qxd6 {[%clk 0:00:20]} 27. Nxg6+ {[%clk 0:01:02]}  hxg6 {[%clk 0:00:18]} 28. Rxe8+ {[%clk 0:01:02]}  Rxe8 {[%clk 0:00:18]} 29. Qxe8+ {[%clk 0:01:02]}  Kh7 {[%clk 0:00:18]} 30. Rd1 {[%clk 0:00:56]}  f5 {[%clk 0:00:19]} 31. Qe3 {[%clk 0:00:52]}  Qb4 {[%clk 0:00:19]} 32. Qe2 {[%clk 0:00:43]}  Qa4 {[%clk 0:00:11]} 33. a3 {[%clk 0:00:42]}  c3 {[%clk 0:00:07]} 34. bxc3 {[%clk 0:00:42]}  Qxa3 {[%clk 0:00:07]} 35. Qd3 {[%clk 0:00:42]}  Qd6 {[%clk 0:00:05]} 36. c4 {[%clk 0:00:41]}  a5 {[%clk 0:00:05]} 37. c5 {[%clk 0:00:42]}  Qd5 {[%clk 0:00:05]} 38. Qf3 {[%clk 0:00:41]}  Qc4 {[%clk 0:00:01]} 39. Qd3 {[%clk 0:00:34]}  Qd5 {[%clk 0:00:01]} 40. g3 {[%clk 0:00:29]}  a4 {[%clk 0:00:01]} 41. h4 {[%clk 0:00:27]}  a3 {[%clk 0:00:01]} 42. Qxa3 {[%clk 0:00:26]}  Bxd4 {[%clk 0:00:02]} 43. Qd3 {[%clk 0:00:25]}  Bxf2+ {[%clk 0:00:02]} 44. Kxf2 {[%clk 0:00:25]}  Qxc5+ {[%clk 0:00:03]} 45. Qd4 {[%clk 0:00:26]}  Qc2+ {[%clk 0:00:03]} 46. Rd2 {[%clk 0:00:27]}  Qb3 {[%clk 0:00:03]} 47. Qd7+ {[%clk 0:00:26]}  Kh6 {[%clk 0:00:04]} 48. Qd8 {[%clk 0:00:23]}  Qb6+ {[%clk 0:00:04]} 49. Qxb6 {[%clk 0:00:23]}  Kh5 {[%clk 0:00:05]} 50. Qf6 {[%clk 0:00:21]}  f4 {[%clk 0:00:04]} 51. Qg5# {[%clk 0:00:21]} 1-0


[Site "https://www.chess.com"]

[Event "Titled Tuesday Blitz October 18 Late 2022"]
[White "Forgacs, Attila Jr."]
[Black "Rose, Felix"]
[WhiteFideId "773654"]
[BlackFideId "5105722"]
[WhiteElo "2168"]
[BlackElo "2039"]
[Result "1-0"]
[Round "05"]
[TimeControl "180+1"]
[Date "2022.10.19"]
[WhiteClock "0:01:49"]
[BlackClock "0:00:10"]

1. e4 {[%clk 0:03:00]}  c5 {[%clk 0:02:59]} 2. d3 {[%clk 0:03:00]}  Nc6 {[%clk 0:02:59]} 3. g3 {[%clk 0:03:01]}  g6 {[%clk 0:02:59]} 4. Bg2 {[%clk 0:03:01]}  Bg7 {[%clk 0:03:00]} 5. f4 {[%clk 0:03:01]}  e6 {[%clk 0:03:00]} 6. Nf3 {[%clk 0:03:00]}  Nge7 {[%clk 0:03:00]} 7. O-O {[%clk 0:03:00]}  O-O {[%clk 0:03:01]} 8. c3 {[%clk 0:02:59]}  b6 {[%clk 0:02:58]} 9. a4 {[%clk 0:02:58]}  Bb7 {[%clk 0:02:58]} 10. Be3 {[%clk 0:02:55]}  d5 {[%clk 0:02:57]} 11. e5 {[%clk 0:02:55]}  d4 {[%clk 0:02:57]} 12. cxd4 {[%clk 0:02:55]}  cxd4 {[%clk 0:02:57]} 13. Bf2 {[%clk 0:02:54]}  Qd7 {[%clk 0:02:56]} 14. Na3 {[%clk 0:02:53]}  Rfd8 {[%clk 0:02:55]} 15. Nc4 {[%clk 0:02:53]}  Ba6 {[%clk 0:02:30]} 16. Nd6 {[%clk 0:02:52]}  Nf5 {[%clk 0:02:14]} 17. Ne4 {[%clk 0:02:48]}  Rac8 {[%clk 0:02:08]} 18. g4 {[%clk 0:02:48]}  Ne3 {[%clk 0:02:07]} 19. Qd2 {[%clk 0:02:32]}  Nxf1 {[%clk 0:02:03]} 20. Rxf1 {[%clk 0:02:33]}  Qe7 {[%clk 0:01:32]} 21. Nd6 {[%clk 0:02:32]}  Rxd6 {[%clk 0:01:18]} 22. exd6 {[%clk 0:02:33]}  Qxd6 {[%clk 0:01:19]} 23. Bg3 {[%clk 0:02:34]}  Qb4 {[%clk 0:01:16]} 24. Qe2 {[%clk 0:02:31]}  Qb3 {[%clk 0:01:12]} 25. Rd1 {[%clk 0:02:30]}  Nb4 {[%clk 0:01:12]} 26. Ne1 {[%clk 0:02:17]}  Qxa4 {[%clk 0:01:07]} 27. f5 {[%clk 0:02:15]}  exf5 {[%clk 0:01:01]} 28. gxf5 {[%clk 0:02:16]}  Re8 {[%clk 0:01:01]} 29. Qg4 {[%clk 0:02:10]}  h6 {[%clk 0:00:55]} 30. fxg6 {[%clk 0:02:08]}  fxg6 {[%clk 0:00:55]} 31. Qxg6 {[%clk 0:01:56]}  Qxd1 {[%clk 0:00:15]} 32. Qxe8+ {[%clk 0:01:55]}  Bf8 {[%clk 0:00:16]} 33. Qe6+ {[%clk 0:01:51]}  Kh8 {[%clk 0:00:12]} 34. Be5+ {[%clk 0:01:50]}  Bg7 {[%clk 0:00:10]} 35. Qe8+ {[%clk 0:01:49]} 1-0


[Site "https://www.chess.com"]